Cogmind - Beta 14 @@@ ROGUE MODE // 2024.10.13 @ 19:57:20 Player: THN-L0C Result: Destroyed by Y-64 Sentinel with KE Penetrator Performance ------------- Evolutions (5) 2500 Regions Visited (14) 2800 Robots Destroyed (214) 1070 Value Destroyed (6940) 6940 Prototype IDs (17) 340 Alien Tech Used (0) 0 Bonus (2066) 2066 TOTAL SCORE: 15716 Bonus ------- High Alert Combat Kills 1337 Follower Combat Kills 1337 Network Hubs Disabled 200 Registered with UFD 300 Built Enhanced Grunts 300 A7 Reached Mainframe 300 Met R17 at Cetus 500 Friendly Fire -2208 Cogmind --------- Core Integrity 0/1000 Matter 172/300 Energy 100/100 System Corruption 15% Temperature Cool (9) Movement Core (50) Location -5/Upper Caves Parts ------- > --- POWER (2) -------- (None) > --- PROPULSION (4) --- (None) > --- UTILITY (8) ------ (None) > --- WEAPON (3) ------- (None) > --- INVENTORY (5) ---- Micro Fission Core Matter Compressor (0) Deep Structural Scanner Expert System A0-MCA's Component Scanner Peak State ------------ > --- POWER ------------ Quantum Reactor Quantum Reactor > --- PROPULSION ------- Overtuned Huge Scrapsphere Overtuned Huge Scrapsphere > --- UTILITY ---------- Scrap Suit Advanced Heat Sink Large Storage Unit Centrium Medium Armor Plating Improved Hacking Suite > --- WEAPON ----------- Overtuned Coil Gun Advanced KE Penetrator Advanced KE Penetrator > --- INVENTORY -------- Quantum Reactor Deep Structural Scanner Advanced Sensor Array Surveybot 17 Chip Expert System Centrium Medium Armor Plating Centrium Medium Armor Plating Improved System Shield A0-MCA's Component Scanner Mapping Drone Bay Overtuned Coil Gun Advanced KE Penetrator Advanced KE Penetrator Scatter Rocket Array Power Sword [Rating: 102] Favorites ----------- Power Heavy Ion Engine Engine Heavy Ion Engine Power Core Neutrino Core Reactor Quantum Reactor Propulsion Armored Wheel Treads Light Treads Leg Improved Aluminum Leg Wheel Armored Wheel Hover Unit Improved Gravmag System Flight Unit VTOL Module Utility Large Storage Unit Device Advanced Heat Sink Storage Large Storage Unit Processor Surveybot 17 Chip Hackware Improved Hacking Suite Protection Hardened Light Armor Plating Weapon Enhanced Autogun Energy Gun Salvaging Laser Energy Cannon Light EM Pulse Cannon Ballistic Gun Enhanced Autogun Launcher Grenade Launcher Special Weapon CPS Tube Impact Weapon Heavy Mace Slashing Weapon Power Sword Build | -11 -10 -10 -9 -8 -8 -8 -8 -6 -6 -6 -6 -6 -5 -5 ------- Run | Yrd Mat Min Mat Mat Sto Rec Scr Fac Ext Cet Arc Hub Fac Upp Slots Evolved 10 | . . . 2 2 . . . 4 . . . . 2 . Power 1 | . . . . . . . . 1 . . . . . . Propulsion 2 | . . . 1 . . . . 1 . . . . . . Utility 6 | . . . . 2 . . . 2 . . . . 2 . Weapon 1 | . . . 1 . . . . . . . . . . . Parts Attached 240 | 9 4 3 26 . 30 3 55 6 10 17 8 8 45 16 Power 28 | 2 1 . 1 . 2 . 9 1 . 3 1 . 6 2 Engine 9 | 2 . . 1 . 2 . 4 . . . . . . . Core 15 | . 1 . . . . . 5 1 . . . . 6 2 Reactor 4 | . . . . . . . . . . 3 1 . . . Propulsion 38 | 2 . . 7 . 3 1 8 1 . . . 2 12 2 Treads 6 | 2 . . . . 1 . . . . . . . 3 . Leg 14 | . . . 6 . 1 . . . . . . . 5 2 Wheel 12 | . . . 1 . 1 1 5 1 . . . 2 1 . Hover 3 | . . . . . . . . . . . . . 3 . Flight 3 | . . . . . . . 3 . . . . . . . Utility 77 | 2 1 1 3 . 6 2 18 2 6 5 6 4 16 5 Device 35 | 1 . . . . 3 . 9 1 3 3 2 2 10 1 Storage 12 | 1 1 1 1 . 1 . 4 . . . . 1 . 2 Processor 5 | . . . . . 1 . 1 . . . . . 3 . Hackware 3 | . . . . . . . . . 1 . 2 . . . Protection 22 | . . . 2 . 1 2 4 1 2 2 2 1 3 2 Artifact . | . . . . . . . . . . . . . . . Weapon 97 | 3 2 2 15 . 19 . 20 2 4 9 1 2 11 7 Energy Gun 5 | . . . 2 . . . 1 . . 2 . . . . Energy Cannon 3 | . 1 . 1 . . . 1 . . . . . . . Ballistic Gun 54 | 3 1 1 11 . 11 . 10 1 1 7 1 2 3 2 Ballistic Cannon . | . . . . . . . . . . . . . . . Launcher 10 | . . . 1 . . . 2 1 1 . . . 2 3 Special Weapon 10 | . . . . . 3 . 6 . 1 . . . . . Impact Weapon 11 | . . 1 . . 5 . . . 1 . . . 4 . Slashing Weapon 4 | . . . . . . . . . . . . . 2 2 Piercing Weapon . | . . . . . . . . . . . . . . . Special Melee Weapon . | . . . . . . . . . . . . . . . Unidentified Prototypes 17 | . . . 4 . 3 . 1 1 . 3 . 1 4 . Corrupted Parts 2 | . . . . . . . . . . . 1 1 . . System Corruption 17 | . . . . . . . . . . . 12 5 . . Parts Lost 55 | . . . 1 . 3 1 . . . 2 . 5 26 17 Power 8 | . . . . . . . . . . 1 . 1 4 2 Propulsion 13 | . . . 1 . 1 . . . . . . . 6 5 Utility 19 | . . . . . 1 1 . . . 1 . 1 11 4 Weapon 15 | . . . . . 1 . . . . . . 3 5 6 Highest Loss Streak 12 | . . . 1 . 1 1 . . . 1 . 5 5 12 To Critical Strikes 3 | . . . . . . . . . . 1 . . 1 1 Average Slot Usage (%) 84 | . 100 100 98 81 89 93 78 80 79 79 79 78 78 54 Engine 4 | . 1 . 10 9 9 9 5 . . . . . . . Core 4 | . 12 14 . . . . 3 13 13 2 . . 8 4 Reactor 1 | . . . . . . . . . . 9 13 12 . . Treads 5 | . 28 28 2 . . 9 2 . . . . . 5 . Leg 4 | . . . 28 18 14 . . . . . . . 2 4 Wheel 8 | . . . . 9 11 18 12 13 13 13 13 13 4 . Flight 2 | . . . . . . . 7 . . . . . . . Device 9 | . 14 14 2 . 4 . 7 20 13 16 16 12 13 6 Storage 10 | . 14 14 11 9 12 18 10 6 6 6 6 6 5 5 Processor 1 | . . . . . . . 1 . . . . . 9 11 Hackware 1 | . . . . . . . . . 5 2 8 13 2 . Protection 4 | . . . 8 9 8 12 4 6 6 6 . . 4 3 Energy Cannon 1 | . 11 14 . . . . 1 . . . . . . . Ballistic Gun 18 | . 16 12 28 27 24 27 19 20 15 19 20 18 4 1 Peak Build Rating 102 | 7 11 12 27 26 34 33 60 82 86 99 102 98 98 75 Average Rating 44 | 5 10 11 23 26 30 32 31 81 81 93 97 95 83 49 On Entrance 47 | . 7 11 12 26 26 33 32 60 82 84 99 98 78 61 Naked Turns 159 | . . . . . . . 145 . . . . . . 14 Heaviest Build 90 | 14 22 32 42 42 57 57 54 77 79 89 90 83 77 52 Greatest Support 55 | 40 40 40 48 12 33 24 32 40 40 40 40 40 55 20 Greatest Overweight (x) 20 | 2 . . 3 3 4 2 6 1 1 2 2 3 20 15 Average Overweight (x) . | . . . . 3 1 1 . 1 1 1 2 1 1 1 Largest Inventory Capacity 15 | 8 10 15 15 15 15 15 15 15 15 15 15 15 15 15 Average Capacity 13 | 7 9 12 15 15 15 15 11 15 15 15 15 15 15 13 Most Carried 15 | 4 10 15 15 15 15 15 15 15 15 15 15 15 15 14 Average Carried 12 | 2 8 10 14 15 14 14 9 14 14 14 14 14 12 10 Final Capacity 15 | 8 10 15 15 15 15 15 15 15 15 15 15 15 15 5 Final Carried 15 | 4 10 15 15 15 15 15 15 15 15 15 15 14 14 5 Class Distribution -------------------- 24% | Commander-Scrapper 16% | Commander-Tank 15% | Tank 15% | Mutant 9% | Scavenger-Mutant 7% | Commander-Gunner 7% | Commander-Mutant Dominant Class ---------------- Mutant | -10/Materials Mutant | -10/Mines Tank | -9/Materials Tank | -8/Materials Tank | -8/Storage Commander-Tank | -8/Recycling Commander-Tank | -8/Scraptown Commander-Scrapper | -6/Factory Commander-Scrapper | -6/Extension Commander-Scrapper | -6/Cetus Commander-Scrapper | -6/Archives Commander-Scrapper | -6/Hub_04(d) Scavenger-Mutant | -5/Factory Scavenger-Mutant | -5/Upper Caves Resources | -11 -10 -10 -9 -8 -8 -8 -8 -6 -6 -6 -6 -6 -5 -5 ----------- Run | Yrd Mat Min Mat Mat Sto Rec Scr Fac Ext Cet Arc Hub Fac Upp Matter Collected 7613 | 202 344 344 764 . 1235 115 1175 248 766 423 288 107 1197 405 Remotely 248 | . . . . . . . 40 . . . . . 208 . Salvage Created 9621 | 44 585 . 1300 . 1310 225 459 377 1097 572 348 311 2715 278 Parts 529 | 8 45 . 94 . 87 11 41 16 48 28 24 17 94 16 Haulers Intercepted 15 | . 2 . 4 . 6 . . 1 . . . . 2 . Recyclers Shooed 10 | 1 . . . . 2 . . . 1 . . 1 5 . Parts Field Recycled . | . . . . . . . . . . . . . . . Retrieved Matter . | . . . . . . . . . . . . . . . Parts Self-Destructed 13 | . . . . . . . . . . . . . . 13 Prevented . | . . . . . . . . . . . . . . . Kills | -11 -10 -10 -9 -8 -8 -8 -8 -6 -6 -6 -6 -6 -5 -5 ------- Run | Yrd Mat Min Mat Mat Sto Rec Scr Fac Ext Cet Arc Hub Fac Upp Combat Hostiles Destroyed 124 | . 11 . 26 . 18 3 . 5 15 7 2 4 27 6 Melee 17 | . . . . . . . . . . . . . 17 . Guns 80 | . 5 . 17 . 18 3 . 5 13 7 2 4 4 2 Cannons 6 | . 6 . . . . . . . . . . . . . AOE 17 | . . . 9 . . . . . 1 . . . 3 4 Classes Destroyed 19 | 2 5 . 4 . . 1 1 . 2 . . 2 2 . Worker 19 | 1 3 . 1 . 2 . . . 2 . . . 10 . Builder 8 | . . . 4 . 1 . . . 1 . . . 2 . Tunneler 3 | 2 . . . . . . . . . . . . 1 . Hauler 16 | . 2 . 4 . 6 . 1 1 . . . . 2 . Recycler 13 | . . . 2 . 3 1 . . 1 . . . 6 . Mechanic 1 | . . . . . . . . . . . . . 1 . Operator 9 | . 2 . . . 2 . . . . . 5 . . . Watcher 10 | . 1 . 4 . 1 . . . 2 2 . . . . Swarmer 25 | . 3 . 10 . 7 . . . 4 . . . . 1 Grunt 54 | . 8 . 10 . 7 . 1 4 6 . . 2 15 1 Brawler 3 | . . . . . . . . . . . . . 3 . Protector 1 | . . . . . . . . . . . . 1 . . Sentry 23 | . . . 7 . 4 2 . 1 4 . 2 1 2 . Hunter 6 | . . . . . . . . . . . . . 2 4 Programmer 7 | . . . . . . 1 . . 1 . . . 5 . Behemoth 1 | . . . . . . . . . 1 . . . . . Cetus Guard 7 | . . . . . . . . . . 7 . . . . Scrapoid 5 | . . . . . . . 5 . . . . . . . Zionite 1 | . . . 1 . . . . . . . . . . . Butcher 1 | . . . . . . . . . 1 . . . . . Guerrilla 1 | . . . . . . . . . . . . 1 . . Best Kill Streak 7 | 2 5 . 7 . 6 2 . 3 5 5 3 3 7 4 Combat Bots Only 5 | . 5 . 5 . 4 1 . 3 3 4 2 3 5 4 Max Kills in Single Turn 5 | 1 1 . 2 . 2 1 1 2 3 2 1 1 5 2 Gunslinging 1 | . . . . . 1 . . . . 1 . . . . Exploded 2 | . . . 2 . . . . . 1 . . . 2 2 Melee 1 | . . . . . . . . . . . . . 1 . Uniques/NPCs Destroyed . | . . . . . . . . . . . . . . . Combat | -11 -10 -10 -9 -8 -8 -8 -8 -6 -6 -6 -6 -6 -5 -5 -------- Run | Yrd Mat Min Mat Mat Sto Rec Scr Fac Ext Cet Arc Hub Fac Upp Hostile Shots Fired 963 | . 45 . 71 . 67 12 . 5 133 36 1 105 352 136 Missed 260 | . 15 . 18 . 25 2 . 2 37 9 . 32 90 30 Damage Taken 11681 | . 440 . 636 . 507 144 . 57 1128 589 19 1458 4574 2129 Core 1393 | . 58 . 63 . 49 . . . 53 23 . 146 403 598 Absorbed by Shields 1035 | . . . . . 10 . . . 191 162 . . 672 . Redirected to Shielding 105 | . . . . . . . . . . . . . 105 . Regen/Repaired (Parts) 110 | . . . 17 . . . 6 . 79 5 . . 3 . Core Remaining (%) 84 | 100 . 76 84 . . . 91 . . . . 73 . . Volleys Fired 410 | 5 35 . 67 . 67 10 35 12 49 22 20 23 46 19 Largest 3 | 2 2 . 3 . 3 3 2 3 3 3 3 3 2 2 Hottest 240 | 40 76 . 98 . 71 65 90 96 96 240 102 105 70 56 Shots Fired 950 | 10 71 1 169 . 196 30 50 36 116 62 46 65 75 23 Gun 869 | 10 45 1 150 . 196 30 25 36 113 62 46 65 74 16 Cannon 41 | . 26 . . . . . 15 . . . . . . . Launcher 28 | . . . 19 . . . . . 1 . . . 1 7 Special 12 | . . . . . . . 10 . 2 . . . . . Kinetic 849 | 10 45 1 146 . 196 30 10 36 113 61 46 65 74 16 Thermal 31 | . . . . . . . 30 . . 1 . . . . Explosive 28 | . . . 19 . . . . . 1 . . . 1 7 Electromagnetic 30 | . 26 . 4 . . . . . . . . . . . Robot Hit Streak 17 | 5 8 3 16 . 8 9 9 8 17 11 5 6 8 16 Robot Miss Streak 13 | 1 4 . 4 . 4 2 4 2 9 3 8 3 4 13 Penetration Max 1 | . . . . . . . . 1 1 1 . 1 1 . Secondary Targets 12 | . 1 . . . 5 . . . 2 2 1 . . 1 Max Gunslinging Chain 2 | . 1 . . . 2 . . . 1 1 1 . . 1 Shots Hit Robots 699 | 6 41 1 102 . 109 21 37 19 84 41 23 39 152 24 Core Hits 386 | 5 24 . 69 . 49 6 11 11 54 22 13 18 77 27 Critical Kills 17 | . . . . . . . 2 1 2 3 5 3 1 . Critical Parts Destroyed 34 | . . . . . 3 . . . 10 3 2 7 8 1 Critical Strikes 70 | . . . . . 3 . 2 1 12 6 7 11 27 1 Meltdown 2 | . . . . . . . 2 . . . . . . . Destroy 46 | . . . . . 3 . . 1 10 6 7 11 7 1 Smash 5 | . . . . . . . . . 2 . . . 3 . Sever 17 | . . . . . . . . . . . . . 17 . Melee Attacks 174 | . . 3 . . 9 . . . 16 . . . 141 5 Thermal 2 | . . . . . . . . . . . . . . 2 Impact 59 | . . 3 . . 9 . . . 16 . . . 30 1 Slashing 113 | . . . . . . . . . . . . . 111 2 Piercing . | . . . . . . . . . . . . . . . Sneak Attacks 15 | . . . . . 1 . . . 2 . . . 12 . Combat Hostiles . | . . . . . . . . . . . . . . . Follow-up Attacks 30 | . . . . . . . . . . . . . 28 2 Damage Inflicted 22217 | 80 792 18 2397 . 1860 417 501 624 3608 1395 783 1362 7699 681 Guns 12582 | 80 283 8 1397 . 1776 417 264 624 2454 1395 783 1362 1521 218 Cannons 671 | . 434 . . . . . 237 . . . . . . . Explosions 3830 | . 43 . 987 . . . . . 793 . . . 1637 370 Melee 5025 | . . . . . 84 . . . 361 . . . 4487 93 Ramming 109 | . 32 10 13 . . . . . . . . . 54 . Kinetic 12398 | 80 283 8 1350 . 1776 417 127 624 2454 1395 783 1362 1521 218 Thermal 986 | . 43 . . . . . 374 . . . . . 569 . Explosive 3218 | . . . 987 . . . . . 793 . . . 1068 370 Electromagnetic 481 | . 434 . 47 . . . . . . . . . . . Impact 1494 | . . . . . 84 . . . 361 . . . 998 51 Slashing 3531 | . . . . . . . . . . . . . 3489 42 Piercing . | . . . . . . . . . . . . . . . Highest Corruption 15 | . 8 8 2 . . . . . 1 1 12 10 15 15 Average Corruption 6 | . 7 8 2 . . . . . 1 1 5 4 12 15 Corruption Purged 13 | . . . . . . . . . . . 13 . . . Corruption Blocked . | . . . . . . . . . . . . . . . Effects 151 | . 30 20 11 . . . . . 5 5 7 2 55 16 Message Errors 29 | . 4 5 4 . . . . . 2 2 2 . 9 1 Matter Fused 39 | . 10 5 1 . . . . . 2 1 2 . 14 4 Heat Flow Errors 19 | . 4 1 . . . . . . 1 1 1 1 9 1 Energy Discharges 9 | . 1 2 2 . . . . . . . . . 3 1 Parts Rejected 3 | . . . . . . . . . . . . 1 2 . Parts Fused 2 | . 1 . . . . . . . . . 1 . . . Data Loss (minor) 19 | . 3 4 1 . . . . . . 1 . . 7 3 Data Loss (major) 8 | . 1 2 . . . . . . . . . . 2 3 Misfires 9 | . 3 1 2 . . . . . . . 1 . 2 . Alerts 4 | . 1 . 1 . . . . . . . . . 1 1 Misdirections 2 | . . . . . . . . . . . . . 2 . Weapon Failures 8 | . 2 . . . . . . . . . . . 4 2 Overload Shots 1 | . . . . . . . . . . 1 . . . . Effects 1 | . . . . . . . . . . 1 . . . . Heat Surge 1 | . . . . . . . . . . 1 . . . . Overflow Damage 1127 | . . . 10 . 59 . . . 164 . . . 891 3 Projectiles . | . . . . . . . . . . . . . . . Explosions 270 | . . . 10 . . . . . . . . . 257 3 Melee 857 | . . . . . 59 . . . 164 . . . 634 . Knockbacks 9 | . . . . . . . . . 4 . . . 5 . Impact 9 | . . . . . . . . . 4 . . . 5 . Kinetic . | . . . . . . . . . . . . . . . Secondary . | . . . . . . . . . . . . . . . Self-Inflicted Damage 372 | . 29 . 23 . . . . . 25 . . . 221 74 Shots 10 | . 1 . 1 . . . . . 1 . . . 4 3 Rammed 9 | . 6 1 1 . . . . . . . . . 1 . Targets Rammed 14 | . 8 1 3 . 1 . . . . . . . 1 . Kicked 3 | . . . 2 . 1 . . . . . . . . . Crushed 2 | . 2 . . . . . . . . . . . . . Highest Temperature 336 | . 336 224 128 . 111 107 151 114 235 305 205 136 204 208 Average Temperature 52 | . 72 107 24 . 25 45 60 52 85 113 75 40 42 120 Received Heat Transfer 2298 | . 204 . 213 . 192 36 . 45 273 13 . 249 938 135 Effects 1 | . 1 . . . . . . . . . . . . . Energy Bleed 1 | . 1 . . . . . . . . . . . . . Siege Activations . | . . . . . . . . . . . . . . . Robots Corrupted 9 | . . . . . . . . . 4 . . . 5 . Combat Hostiles 4 | . . . . . . . . . 1 . . . 3 . Parts Fried 16 | . 2 . . . . . . . 8 . . . 6 . Impact Corruptions 22 | . . . . . 2 . . . 7 . . . 13 . Robots Melted 2 | . . . . . . . 2 . . . . . . . Combat Hostiles . | . . . . . . . . . . . . . . . Parts Melted 5 | . . . . . . . . . 1 2 2 . . . Heat Transferred 785 | . . . . . . . 335 . . . . . 450 . Parts Sabotaged 2 | . . . . . . . . . . . . . 2 . Parts Stolen . | . . . . . . . . . . . . . . . Parts Stripped . | . . . . . . . . . . . . . . . Power Chain Reactions 1 | . 1 . . . . . . . . . . . . . Alert | -11 -10 -10 -9 -8 -8 -8 -8 -6 -6 -6 -6 -6 -5 -5 ------- Run | Yrd Mat Min Mat Mat Sto Rec Scr Fac Ext Cet Arc Hub Fac Upp Peak Influence 1156 | 15 192 7 402 147 451 229 . 467 1156 926 502 977 1050 . Initial 636 | . 9 7 . 147 61 175 . . 228 636 290 53 406 . Average 317 | 4 78 3 263 147 194 135 . 147 526 839 310 315 762 . Maximum Alert Level 4 | . . . 2 . 2 1 . 2 4 3 2 3 3 . Low Security (%) 42 | 100 100 100 22 100 61 54 . 57 . . 30 50 . . Level 1 28 | . . . 72 . 24 45 . 30 41 . 36 25 8 . Level 2 14 | . . . 5 . 14 . . 11 41 5 32 . 27 . Level 3 13 | . . . . . . . . . 2 94 . 24 64 . Level 4 1 | . . . . . . . . . 15 . . . . . Level 5 . | . . . . . . . . . . . . . . . High Security . | . . . . . . . . . . . . . . . Max Security . | . . . . . . . . . . . . . . . Squads Dispatched 23 | . 2 1 4 . 4 . . 1 4 . . 2 5 . Investigation 4 | . . 1 . . 1 . . 1 . . . . 1 . Extermination 1 | . . . . . . . . . . . . . 1 . Reinforcement 11 | . 2 . 4 . . . . . 2 . . 1 2 . Assault 3 | . . . . . . . . . 2 . . . 1 . Garrison 4 | . . . . . 3 . . . . . . 1 . . Intercept . | . . . . . . . . . . . . . . . Searches Triggered . | . . . . . . . . . . . . . . . Construction Impeded 4 | . . . 2 . . . . . 1 . . . 1 . Haulers Reinforced . | . . . . . . . . . . . . . . . Active Scanning Responses . | . . . . . . . . . . . . . . . Cargo Convoy Interrupts . | . . . . . . . . . . . . . . . Stealth | -11 -10 -10 -9 -8 -8 -8 -8 -6 -6 -6 -6 -6 -5 -5 --------- Run | Yrd Mat Min Mat Mat Sto Rec Scr Fac Ext Cet Arc Hub Fac Upp Distress Signals 16 | . 1 . 1 . 3 . . . 3 2 . 2 4 . Communications Jammed . | . . . . . . . . . . . . . . . Distress Signals . | . . . . . . . . . . . . . . . Times Spotted 230 | . 20 . 41 . 30 3 . 7 36 9 13 16 48 7 Peak Tracking Total 12 | . 6 . 4 . 6 1 . 2 12 5 1 7 6 3 Tactical Retreats 13 | . 1 . 2 . 2 . . . 2 . . 1 5 . Traps | -11 -10 -10 -9 -8 -8 -8 -8 -6 -6 -6 -6 -6 -5 -5 ------- Run | Yrd Mat Min Mat Mat Sto Rec Scr Fac Ext Cet Arc Hub Fac Upp Traps Triggered 13 | . 6 . 1 . 2 . . 1 2 . . . 1 . Indirectly . | . . . . . . . . . . . . . . . Trap Hack Attempts . | . . . . . . . . . . . . . . . Triggered . | . . . . . . . . . . . . . . . Disarmed . | . . . . . . . . . . . . . . . Reprogrammed . | . . . . . . . . . . . . . . . Reused . | . . . . . . . . . . . . . . . Traps Extracted . | . . . . . . . . . . . . . . . Installed . | . . . . . . . . . . . . . . . Triggered . | . . . . . . . . . . . . . . . Machines | -11 -10 -10 -9 -8 -8 -8 -8 -6 -6 -6 -6 -6 -5 -5 ---------- Run | Yrd Mat Min Mat Mat Sto Rec Scr Fac Ext Cet Arc Hub Fac Upp Machines Disabled 40 | . . . 2 . 8 . . 6 1 1 3 10 9 . Max in Single Turn 4 | . . . 1 . 1 . . 4 1 1 1 1 4 . Garrison Access 2 | . . . . . . . . . . . . 1 1 . Network Hub 1 | . . . . . . . . . . . . 1 . . Machines Repaired . | . . . . . . . . . . . . . . . Machines Dismantled 3 | . . . . . 3 . . . . . . . . . Machines Sabotaged . | . . . . . . . . . . . . . . . Overloaded Fab Kills . | . . . . . . . . . . . . . . . Hacking | -11 -10 -10 -9 -8 -8 -8 -8 -6 -6 -6 -6 -6 -5 -5 --------- Run | Yrd Mat Min Mat Mat Sto Rec Scr Fac Ext Cet Arc Hub Fac Upp Machines Accessed 47 | . 6 1 6 . 13 5 1 2 5 . . 4 4 . Terminals 38 | . 6 . 5 . 12 5 . 1 5 . . 3 1 . Fabricators 1 | . . . . . . . . . . . . . 1 . Repair Stations 1 | . . . 1 . . . . . . . . . . . Recycling Units 2 | . . . . . . . . 1 . . . . 1 . Scanalyzers . | . . . . . . . . . . . . . . . Garrison Access 3 | . . . . . 1 . . . . . . 1 1 . Total Hacks 125 | . 14 1 16 . 32 11 18 2 11 . . 9 11 . Successful 69 | . 8 1 11 . 13 7 18 2 5 . . 3 1 . Failed 56 | . 6 . 5 . 19 4 . . 6 . . 6 10 . Catastrophic 10 | . . . 2 . 4 . . . . . . 1 3 . Database Lockouts . | . . . . . . . . . . . . . . . Manual 78 | . 14 . 14 . 17 11 . 1 8 1 . 7 5 . Terminals 92 | . 14 . 14 . 30 11 . 1 11 . . 8 3 . Fabricators 2 | . . . . . . . . . . . . . 2 . Repair Stations 2 | . . . 2 . . . . . . . . . . . Recycling Units 5 | . . . . . . . . 1 . . . . 4 . Scanalyzers . | . . . . . . . . . . . . . . . Garrison Access 5 | . . . . . 2 . . . . . . 1 2 . Terminal Hacks 31 | . . 1 1 . 5 1 18 1 2 . . 2 . . Record 18 | . . . . . . . 18 . . . . . . . Open Door 7 | . . 1 . . 3 . . 1 2 . . . . . Terminal Index 3 | . . . . . 1 1 . . . . . 1 . . Unreport Threat 1 | . . . 1 . . . . . . . . . . . Locate Traps 1 | . . . . . 1 . . . . . . . . . Zone Layout 1 | . . . . . . . . . . . . 1 . . Fabricator Hacks . | . . . . . . . . . . . . . . . Repair Station Hacks 2 | . . . 2 . . . . . . . . . . . Scan Component 1 | . . . 1 . . . . . . . . . . . Repair 1 | . . . 1 . . . . . . . . . . . Recycling Unit Hacks . | . . . . . . . . . . . . . . . Scanalyzer . | . . . . . . . . . . . . . . . Garrison Access Hacks 2 | . . . . . . . . . . . . 1 1 . Seal Access 2 | . . . . . . . . . . . . 1 1 . Unauthorized Hacks 33 | . 8 . 8 . 8 6 . 1 2 . . . . . Terminals 32 | . 8 . 8 . 8 6 . . 2 . . . . . Assimilate 1 | . . . 1 . . . . . . . . . . . Botnet 10 | . 3 . 2 . 2 1 . . 2 . . . . . Skim 21 | . 5 . 5 . 6 5 . . . . . . . . Fabricators . | . . . . . . . . . . . . . . . Repair Stations 1 | . . . . . . . . 1 . . . . . . Recycling Units . | . . . . . . . . . . . . . . . Scrapoids 1 | . . . . . . . . 1 . . . . . . Scanalyzers . | . . . . . . . . . . . . . . . Garrison Access . | . . . . . . . . . . . . . . . Data Cores Recovered 2 | . . . . . 1 . . . . . . 1 . . Used 1 | . . . . . 1 . . . . . . . . . Hacking Detections 34 | . 5 . 4 . 11 4 . . 3 1 . 3 3 . Full Trace Events 4 | . . . . . 3 . . . . . . . 1 . Feedback Events . | . . . . . . . . . . . . . . . Feedback Blocked . | . . . . . . . . . . . . . . . Robot Schematics Acquired . | . . . . . . . . . . . . . . . Robots Built . | . . . . . . . . . . . . . . . Authchips . | . . . . . . . . . . . . . . . Time . | . . . . . . . . . . . . . . . Total Robot Build Rating . | . . . . . . . . . . . . . . . Part Schematics Acquired . | . . . . . . . . . . . . . . . Parts Built . | . . . . . . . . . . . . . . . Authchips . | . . . . . . . . . . . . . . . Time . | . . . . . . . . . . . . . . . Total Part Build Rating . | . . . . . . . . . . . . . . . Parts Repaired 1 | . . . 1 . . . . . . . . . . . Time 26 | . . . 26 . . . . . . . . . . . Parts Recycled . | . . . . . . . . . . . . . . . Recycled Matter . | . . . . . . . . . . . . . . . Retrieved Matter . | . . . . . . . . . . . . . . . Retrieved Components . | . . . . . . . . . . . . . . . Parts Scanalyzed . | . . . . . . . . . . . . . . . Part Schematics Acquired . | . . . . . . . . . . . . . . . Parts Damaged . | . . . . . . . . . . . . . . . Bothacking | -11 -10 -10 -9 -8 -8 -8 -8 -6 -6 -6 -6 -6 -5 -5 ------------ Run | Yrd Mat Min Mat Mat Sto Rec Scr Fac Ext Cet Arc Hub Fac Upp Used RIF Installer . | . . . . . . . . . . . . . . . Robots Hacked . | . . . . . . . . . . . . . . . Non-combat . | . . . . . . . . . . . . . . . Combat . | . . . . . . . . . . . . . . . Robot Hacks Applied . | . . . . . . . . . . . . . . . Relay Couplers Released 1 | . . . . . . . . . . . . 1 . . Machine Destruction 1 | . . . . . . . . . . . . 1 . . Fabnet Peak Effective % . | . . . . . . . . . . . . . . . Robots Rewired 12 | . . . . . . 5 . . 7 . . . . . Allies Hacked . | . . . . . . . . . . . . . . . Hacks Repelled . | . . . . . . . . . . . . . . . Allies | -11 -10 -10 -9 -8 -8 -8 -8 -6 -6 -6 -6 -6 -5 -5 -------- Run | Yrd Mat Min Mat Mat Sto Rec Scr Fac Ext Cet Arc Hub Fac Upp Total Allies 45 | . . 5 . . 10 5 5 5 10 5 . . . . Largest Group 28 | . . 5 5 . 10 15 20 18 28 18 18 14 . . Highest-Rated Group 906 | . . 82 82 . 173 246 481 360 796 906 906 678 . . Highest-Rated Ally 159 | . . 31 31 . 29 29 47 29 159 159 159 96 . . Total Orders 11 | . . . . . . 2 4 1 2 2 . . . . STAY 5 | . . . . . . 1 1 1 1 1 . . . . FOLLOW 6 | . . . . . . 1 3 . 1 1 . . . . Ally Attacks 262 | . . . 13 . 4 . . 25 133 25 21 41 . . Total Damage 6954 | . . . 126 . 38 . . 415 2519 509 441 2906 . . Kills 56 | . . . 3 . . . . 5 23 1 2 22 . . Allies Corrupted 6 | . . . . . . . . . . . . 6 . . Allies Melted 2 | . . . . . . . 2 . . . . . . . Intel | -11 -10 -10 -9 -8 -8 -8 -8 -6 -6 -6 -6 -6 -5 -5 ------- Run | Yrd Mat Min Mat Mat Sto Rec Scr Fac Ext Cet Arc Hub Fac Upp Robot Analysis Total . | . . . . . . . . . . . . . . . Derelict Logs Recovered 2 | . . 1 . . . . . . . . . . . 1 Drone Launches . | . . . . . . . . . . . . . . . Drone Recoveries . | . . . . . . . . . . . . . . . Exploration | -11 -10 -10 -9 -8 -8 -8 -8 -6 -6 -6 -6 -6 -5 -5 ------------- Run | Yrd Mat Min Mat Mat Sto Rec Scr Fac Ext Cet Arc Hub Fac Upp Turns Passed 16096 | 107 1225 740 1795 73 1381 795 5043 319 936 459 1157 336 1369 361 Spaces Moved 10902 | 55 667 411 932 55 579 500 4938 263 721 389 336 290 604 162 Core 312 | 12 . . . . . . 281 . . . . . 2 17 Treads 1390 | 43 667 411 124 . . . . . . . . . 145 . Legs 1264 | . . . 773 . 355 . . . . . . . 90 46 Wheels 6335 | . . . 35 55 224 500 3213 263 721 389 336 290 309 . Hover 157 | . . . . . . . . . . . . . 58 99 Flight 1444 | . . . . . . . 1444 . . . . . . . Fastest Speed 30 | 50 160 160 126 135 115 100 30 80 80 80 90 80 80 50 Average Speed 111 | 141 160 160 134 135 169 117 93 80 80 89 90 89 144 160 Slowest Speed 1050 | 160 160 160 240 135 400 120 350 80 80 90 90 100 1050 800 Overloaded Moves . | . . . . . . . . . . . . . . . Propulsion Burnouts . | . . . . . . . . . . . . . . . Robots Hopped . | . . . . . . . . . . . . . . . Cave-ins Triggered . | . . . . . . . . . . . . . . . Exploration Rate (%) 56 | 3 92 84 82 9 82 93 89 8 61 76 82 35 19 29 Regions Visited 14 Branch Regions 9 Pre-discovered Areas 10 | . . 1 1 . 3 1 4 . . . . . . . Known Exits Taken 7 | . 1 1 1 . 1 . . 1 . . . 1 1 . Unknown Exits Taken 7 | 1 . . . 1 . 1 1 . 1 1 1 . . . Scrap Searched 4 | . . 1 . . . . 3 . . . . . . . Spaces Dug 8 | . . 2 . . 1 . . 4 1 . . . . . Terrain Destroyed 563 | . 6 2 64 . 5 . . 55 121 15 27 28 112 128 Melee 4 | . . 2 . . 1 . . . 1 . . . . . Projectile 193 | . . . . . 4 . . 19 78 15 27 28 22 . AOE 365 | . 6 . 64 . . . . 35 42 . . . 90 128 Terrain Rammed . | . . . . . . . . . . . . . . . Walls Destroyed . | . . . . . . . . . . . . . . . Machines Disabled . | . . . . . . . . . . . . . . . Actions | -11 -10 -10 -9 -8 -8 -8 -8 -6 -6 -6 -6 -6 -5 -5 --------- Run | Yrd Mat Min Mat Mat Sto Rec Scr Fac Ext Cet Arc Hub Fac Upp Total 13903 | 71 752 487 1345 54 774 698 5326 362 1002 487 1167 322 835 221 Wait 1819 | 1 30 61 296 . 43 92 224 67 147 39 793 . 21 5 Move 10888 | 54 666 410 931 54 578 499 4937 262 720 388 335 289 603 162 Hop . | . . . . . . . . . . . . . . . Pick Up 102 | 2 6 7 6 . 4 2 31 5 2 10 5 1 10 11 Fast Attach 84 | 7 . . 4 . 5 2 29 . . 3 2 5 21 6 Attach 34 | . . . . . 1 . 7 4 . 1 . 1 11 9 Detach 12 | . . . . . 1 . 7 1 . 1 1 . . 1 Swap 124 | 2 4 3 22 . 25 1 19 2 10 13 6 2 14 1 Drop 98 | . 3 2 16 . 7 3 37 1 6 10 5 1 3 4 Fire 410 | 5 35 . 67 . 67 10 35 12 49 22 20 23 46 19 Melee 136 | . . 3 . . 9 . . . 16 . . . 105 3 Ram 1 | . . . . . . . . . . . . . 1 . Kick 3 | . . . 2 . 1 . . . . . . . . . Crush 10 | . 8 1 1 . . . . . . . . . . . Escape Stasis 25 | . . . . . 9 . . 8 8 . . . . . Rewire 133 | . . . . . . 89 . . 44 . . . . . Trap . | . . . . . . . . . . . . . . . Miscellaneous 24 | . . . . . 24 . . . . . . . . . Route ------- -11/Scrapyard -10/Materials (discovered 6 exits: *Mat x3 / *Min x2 / Sub) -10/Mines (discovered 2 exits: *Mat x2) -9/Materials (discovered 5 exits: *Mat x3 / *Min x2) -8/Materials (discovered 3 exits: Fac x2 / *Sto) -8/Storage (discovered 2 exits: *Fac / *Rec) -8/Recycling (discovered 2 exits: *Fac / *Scr) -8/Scraptown (discovered 2 exits: *Fac x2) -6/Factory (discovered 8 exits: *Fac x4 / Low x2 / *Ext x2) -6/Extension (discovered 2 exits: *Fac / *Cet) -6/Cetus (discovered 2 exits: *Fac / [*Arc]) -6/Archives (discovered 3 exits: *Fac / *Hub x2) -6/Hub_04(d) (discovered 3 exits: *Fac x3) -5/Factory (discovered 2 exits: [*Fac] / *Upp) -5/Upper Caves (discovered 1 exit: Upp) History --------- Turn | Location | Event 40 | -11/Scrapyard | Discovered new exit (range 15) 108 | -11/Scrapyard | Entered Materials 320 | -10/Materials | Build established: Mutant 492 | -10/Materials | Discovered new exit (range 6) 567 | -10/Materials | Discovered new exit (range 10) 647 | -10/Materials | Discovered new exit (range 7) 742 | -10/Materials | Discovered new exit (range 3) 995 | -10/Materials | Discovered new exit (range 8) 1147 | -10/Materials | Learned 2 Mines zone layouts 1188 | -10/Materials | Learned Storage trap positions 1189 | -10/Materials | Identified exit to Mines 1189 | -10/Materials | Identified exit to Materials 1190 | -10/Materials | Learned Storage emergency access door positions 1191 | -10/Materials | Learned Storage trap positions 1197 | -10/Materials | Identified exit to Subcaves 1213 | -10/Materials | Learned 4 Subcaves zone layouts 1241 | -10/Materials | Learned Storage stockpile data 1333 | -10/Materials | Entered Mines 1444 | -10/Mines | Learned location of Storage (-8) 1604 | -10/Mines | Assisted by bots powering up and referring to "LRC-V3" 1891 | -10/Mines | Met a Derelict shopkeep closing up shop 2073 | -10/Mines | Entered Materials 2073 | -9/Materials | Accompanied by 5 allies 2073 | -9/Materials | Evolved 2 slots: Propulsion x1, Weapon x1 2074 | -9/Materials | Identified exit to Materials 2074 | -9/Materials | Identified exit to Mines 2078 | -9/Materials | Led the pair of lost Derelicts to an unsafe place 2265 | -9/Materials | Lost 5 allies 3074 | -9/Materials | Build established: Tank 3136 | -9/Materials | Discovered exit to Materials (range 10) 3470 | -9/Materials | Learned location of 2 exits from Materials 3530 | -9/Materials | Loaded intel: 11 trap records 3579 | -9/Materials | Learned Storage garrison access intel 3859 | -9/Materials | Repaired Seismic Detector 3868 | -9/Materials | Entered another Materials area 3868 | -8/Materials | Evolved 2 slots: Utility x2 3868 | -8/Materials | Discovered new exit (range 7) 3869 | -8/Materials | Identified exit to Factory 3941 | -8/Materials | Entered Storage 3942 | -8/Storage | Loaded intel: 19 trap records 3945 | -8/Storage | Loaded intel: 1 garrison access location 4581 | -8/Storage | Discovered exit to Factory (range 9) 4926 | -8/Storage | Garrison activated, responded to threat 5130 | -8/Storage | Learned 4 Recycling zone layouts 5173 | -8/Storage | Learned location of Recycling (-8) 5207 | -8/Storage | Learned location of 1 exit from Lower Caves 5232 | -8/Storage | Learned location of Zion (-6) 5248 | -8/Storage | Assisted by bots powering up and referring to "LRC-V3" 5254 | -8/Storage | Identified exit to Recycling 5268 | -8/Storage | Learned location of Lower Caves (-6) 5301 | -8/Storage | Used back door to open Recycling access 5322 | -8/Storage | Entered Recycling 5322 | -8/Recycling | Accompanied by 10 allies 5550 | -8/Recycling | Build established: Commander-Tank 5769 | -8/Recycling | Discovered new exit (range 16) 5822 | -8/Recycling | Learned Storage stockpile data 5885 | -8/Recycling | Learned 4 Factory zone layouts 5940 | -8/Recycling | Learned location of 1 exit from Lower Caves 5987 | -8/Recycling | Learned Factory interactive machine intel 6030 | -8/Recycling | Scanned before Scraplab entrance 6048 | -8/Recycling | Entered Scraplab 6058 | -8/Recycling | Discovered new exit (range 3) 6087 | -8/Recycling | Learned Factory emergency access door positions 6117 | -8/Recycling | Entered Scraptown 6117 | -8/Scraptown | Accompanied by 15 allies 6261 | -8/Scraptown | Heard Great Nut preacher, LISTEN AND RECITE! 6300 | -8/Scraptown | Visited Symbiants 6324 | -8/Scraptown | Visited The Evicted 6353 | -8/Scraptown | Visited TADAMA 6428 | -8/Scraptown | Visited Cyclists 6495 | -8/Scraptown | Discovered new exit (range 11) 6804 | -8/Scraptown | Visited UFD Registry 6804 | -8/Scraptown | Registered with UFD as "Cargoeater" 6839 | -8/Scraptown | Visited Research Penetration Think Tank 6869 | -8/Scraptown | Visited Science Testing Area 6972 | -8/Scraptown | Visited Science Guys 6993 | -8/Scraptown | Visited Scrapoid Pod Storage 7010 | -8/Scraptown | Visited Abandonware Association 7039 | -8/Scraptown | Visited Chapter 10 7063 | -8/Scraptown | Visited Scrapoid Research Area 7083 | -8/Scraptown | Visited A0-MCA Data Center 7370 | -8/Scraptown | Released all parts (11) 7376 | -8/Scraptown | Visited Cartography Club 7389 | -8/Scraptown | Found Surveybot 17 Chip 7409 | -8/Scraptown | Found Deep Structural Scanner 7415 | -8/Scraptown | Learned location of Upper Caves (-5) 7415 | -8/Scraptown | Learned location of Hub_04(d) (-6) 7415 | -8/Scraptown | Learned location of Armory (-3) 7415 | -8/Scraptown | Learned 12 Factory zone layouts 7415 | -8/Scraptown | Learned 4 Access zone layouts 7415 | -8/Scraptown | Learned 4 Mines zone layouts 7415 | -8/Scraptown | Learned 4 Storage zone layouts 7415 | -8/Scraptown | Learned 12 Lower Caves zone layouts 7415 | -8/Scraptown | Learned 20 Lower Caves zone layouts 7415 | -8/Scraptown | Learned 16 Proximity Caves zone layouts 7415 | -8/Scraptown | Learned Storage emergency access door positions 7415 | -8/Scraptown | Learned location of 1 exit from Factory 7415 | -8/Scraptown | Learned location of 2 exits from Factory 7415 | -8/Scraptown | Learned location of 2 exits from Proximity Caves 7604 | -8/Scraptown | Found Scrapoid Pod 7663 | -8/Scraptown | Build established: Commander-Mutant 8022 | -8/Scraptown | Build established: Commander-Gunner 8067 | -8/Scraptown | Scrapoid Pod released 08S07-D (x5) 8777 | -8/Scraptown | Visited Fellowship of the Rings 9489 | -8/Scraptown | Build established: Commander-Tank 9989 | -8/Scraptown | Build established: Commander-Mutant 10334 | -8/Scraptown | Given an S rating by A0-MCA 10359 | -8/Scraptown | Found Scrap Suit 10547 | -8/Scraptown | Found A0-MCA's Component Scanner 10549 | -8/Scraptown | Found Prototype Processor 10690 | -8/Scraptown | Build established: Commander-Scrapper 10702 | -8/Scraptown | Visited Scrap Suit Storage 10707 | -8/Scraptown | Found Scrap Suit 10931 | -8/Scraptown | Found Scrap Suit 11127 | -8/Scraptown | Discovered new exit (range 3) 11160 | -8/Scraptown | Entered Factory 11160 | -6/Factory | Accompanied by 13 allies 11160 | -6/Factory | Evolved 4 slots: Power x1, Propulsion x1, Utility x2 11161 | -6/Factory | Identified exit to Lower Caves 11161 | -6/Factory | Identified exit to Extension 11162 | -6/Factory | Identified exit to Factory 11165 | -6/Factory | Loaded intel: 54 interactive machine locations 11360 | -6/Factory | Found Prototype Launcher 11401 | -6/Factory | Identified Scatter Rocket Array 11422 | -6/Factory | Scrapoid reinforcements arrived 11479 | -6/Factory | Entered Extension 11479 | -6/Extension | Accompanied by 18 allies 11896 | -6/Extension | Rescued A7 12058 | -6/Extension | Rescued a captive Derelict 12063 | -6/Extension | Rescued a captive Derelict 12179 | -6/Extension | First assault squad dispatched 12186 | -6/Extension | Spotted B-75 Beast 12197 | -6/Extension | Destroyed B-75 Beast 12203 | -6/Extension | Spotted B-75 Beast 12212 | -6/Extension | Allies destroyed B-75 Beast 12242 | -6/Extension | Lost 3 allies 12314 | -6/Extension | Lost 9 allies 12335 | -6/Extension | Discovered new exit (range 15) 12336 | -6/Extension | Discovered exit to Factory (range 15) 12415 | -6/Extension | Entered Cetus 12415 | -6/Cetus | Accompanied by 14 allies (A7) 12420 | -6/Cetus | Acquired a Cetus Manufacturing Module code from A7 12428 | -6/Cetus | Spotted Cetus Guard 12429 | -6/Cetus | Spotted Cetus Guard 12429 | -6/Cetus | Spotted Cetus Guard 12431 | -6/Cetus | Spotted Cetus Guard 12434 | -6/Cetus | Destroyed Cetus Guard 12434 | -6/Cetus | Destroyed Cetus Guard 12438 | -6/Cetus | Destroyed Cetus Guard 12444 | -6/Cetus | Destroyed Cetus Guard 12538 | -6/Cetus | Escorted A7 to Cetus Mainframe 12548 | -6/Cetus | Started Cetus Manufacturing Module 12559 | -6/Cetus | Discovered new exit (range 15) 12573 | -6/Cetus | Manufactured an Enhanced Grunt 12579 | -6/Cetus | Spotted Cetus Guard 12579 | -6/Cetus | Spotted Cetus Guard 12581 | -6/Cetus | Spotted Cetus Guard 12582 | -6/Cetus | Spotted Cetus Guard 12589 | -6/Cetus | Destroyed Cetus Guard 12592 | -6/Cetus | Destroyed Cetus Guard 12598 | -6/Cetus | Manufactured an Enhanced Grunt 12599 | -6/Cetus | Destroyed Cetus Guard 12603 | -6/Cetus | Allies destroyed Cetus Guard 12607 | -6/Cetus | Discovered exit to Factory (range 15) 12612 | -6/Cetus | Met Revision 17 12623 | -6/Cetus | Manufactured an Enhanced Grunt 12648 | -6/Cetus | Manufactured an Enhanced Grunt 12673 | -6/Cetus | Manufactured an Enhanced Grunt 12874 | -6/Cetus | Entered Archives 12874 | -6/Archives | Accompanied by 18 allies (A7) 12879 | -6/Archives | Received a hacking code to weaken MAIN.C 12903 | -6/Archives | Discovered new exit (range 15) 12916 | -6/Archives | Discovered exit to Factory (range 14) 12923 | -6/Archives | Lost 3 allies 12996 | -6/Archives | Discovered new exit (range 15) 13013 | -6/Archives | System corruption reached 10% 13357 | -6/Archives | Found Scrap Suit 14031 | -6/Archives | Entered Hub_04(d) 14031 | -6/Hub_04(d) | Accompanied by 14 allies 14183 | -6/Hub_04(d) | Discovered exit to Factory (range 4) 14223 | -6/Hub_04(d) | Discovered exit to Factory (range 20) 14251 | -6/Hub_04(d) | Discovered exit to Factory (range 9) 14255 | -6/Hub_04(d) | Garrison activated, responded to threat 14286 | -6/Hub_04(d) | Network Hub disabled 14300 | -6/Hub_04(d) | Spotted Lightning 14314 | -6/Hub_04(d) | Spotted Lightning 14314 | -6/Hub_04(d) | Spotted Lightning 14367 | -6/Hub_04(d) | Entered Factory 14367 | -5/Factory | Evolved 2 slots: Utility x2 14368 | -5/Factory | Identified exit to Upper Caves 14370 | -5/Factory | Lost 10 allies 14386 | -5/Factory | Lost 5 parts (1p1u3w) 14437 | -5/Factory | Spotted B-75 Beast 14550 | -5/Factory | System corruption reached 10% 14564 | -5/Factory | Lost 5 parts (1p1n3u) 14822 | -5/Factory | Build established: Scavenger-Mutant 15267 | -5/Factory | First assault squad dispatched 15281 | -5/Factory | Discovered new exit (range 16) 15736 | -5/Factory | Entered Upper Caves 15740 | -5/Upper Caves | Identified exit to Upper Caves 15759 | -5/Upper Caves | Lost 5 parts (1p1n2u1w) 15921 | -5/Upper Caves | Core integrity fell below 50% 15970 | -5/Upper Caves | Released all parts (8) 15995 | -5/Upper Caves | Lost 12 parts (1p4n2u5w) 16038 | -5/Upper Caves | Attracted the attention of an 0b10 checkpoint 16073 | -5/Upper Caves | Core integrity fell below 20% 16079 | -5/Upper Caves | Released all parts (1) 16097 | -5/Upper Caves | Destroyed by Y-64 Sentinel with KE Penetrator Last Messages --------------- 16079_ Dropped Corrupted Mic. Fission Core. 16079_ Dropped Prc. Matter Filter. 16080_ Extracted 250 matter. 16080_ Acquired Matter Compressor. 16082_ Acquired Scatter Rocket Array. 16083_ Penetrated by Slug. 16084_ The unstable cave ceiling collapses. 16089_ Penetrated by Slug. 16089_ Scatter Rocket Array destroyed. 16090_ System corrupted: Substantial component data lost. 16090_ The unstable cave ceiling collapses. 16091_ Acquired Corrupted Mic. Fission Core. 16092_ Penetrated by Slug. 16093_ Dropped Prototype Storage. 16093_ Dropped Corrupted Mic. Fission Core. 16094_ The unstable cave ceiling collapses. 16095_ Slug penetrates Wall. 16095_ Acquired A0-MCA's Component Scanner. 16097_ The unstable cave ceiling collapses. 16097_ Acquired Prototype Processor. Map ----- +----------------------------------------------------+ | ?????????????????????????????????????????????????? | | ?????????????????????????????????????????????????? | | ?????????????????????????????????????????????????? | | ?????????????????????????????????????????????????? | | ?????????????????????????????????????????????????? | | ?????????????????????????????????????????????????? | | ?????????????????????????????????????????????????? | | ?????????????????????????????????????????????????? | | ??????????????????????????????????????? ?????????? | | ???????????????????????????????????????# ????????# | | ????????????????????????????? ##??#### ??????? | | ???????????????? ?????????## # ## ? ###???? | | ???????????????# ?????### #??? | | ??????????????## ????## ?# ???# | | ????????????? ??## ### #??# #??# | | ????????????? ?## #???# ### | | ??????????????# ## # # #???# ## | | ???????????????# ## ##??# ## | | ???????????????# # #???# ## | | ????????????????? #????# | | ??????????????????? # #????# | | ????????????????????# % # ##???# | | ????????????????????# ##?## | | ???????????????????## ! Y # ### | | ??????????????????## !! # | | ??????????????????#; *@! | | ??????????????????# | | ??????????????????# ### | | ??????????????????## ##?## | | ???????????????????## ##???##!% # # ### | | ????????????????????## ###?????# #???### #?# | | ?????????????????????## #???????# ????## ### | | ??????????????????????# #???????# ????# ## | | ??????????????????????# ??????? ???##### | | ?????????????????????? ?????? ??????# | | ????????????????????? #?????## ## ?????# | | ????????????????????? ???????# ## #?# ??# | | ????????????????????### ???????###?? #??##??# | | ??????????????????????# ???????????? #??????# ? | | ??????????????????????# ???????????? #?????# #? | | ??????????????????????? ???????????? ?????# ?# | | ????????????????????????????????????? ?????# ?## | | ????????????????????????????????????? ?????# ??# | | ???????????????????????????????????????????###### | | ???????????????????????????????????????????# | | ???????????????????????????????????????????# | | ????????????????????????????????????# ### | | ????????????????????????????????????? ??# | | ????????????????????????????????????? #???## | | ????????????????????????????????????????? ??????## | +----------------------------------------------------+ Best States ------------- Heat Dissipation 78 Energy Generation 45 Energy Capacity 900 Matter Stores 500 Matter Capacity 500 Sight Range 16 Robot Scan Range 16 Terrain Scan Density 1210 Additional Mass Support 6 Armor Coverage 600 Weapon Shielding 66 Weapon Cycling 15 Evasion (%) 64 Target Analysis 8 Recoil Reduction 2 Matter Filtering 50 Energy Filtering 50 Kinecelleration 40 Salvage Targeting 4 Offensive Hacking 12 Defensive Hacking 12 Item Schematics ----------------- None Robot Schematics ------------------ None Fabricated ------------ Nothing Alien Tech Used ----------------- None Achievements -------------- None Challenges ------------ None Game ------ Seed MachineGaussCarapace Manual? 0 Play Time 01:46:59 Cumulative 343.9 hours Start 2024.10.13 @ 18:09:39 End 2024.10.13 @ 19:57:20 Sessions 1 Manual Loads 0 Difficulty Rogue Special Mode None Game No. 260 Rogue 260 Adventurer 0 Explorer 0 Win Type - Total 3 Types 1/0/1/1/0/0/0/0/0 Lore% 75 Gallery% 80 Achievement% 64 Wizard Run 0 Options --------- Layout 2 ASCII 0 Keyboard 1 Movement Vi Keybinds 0 Fullscreen 2 Font 32/SmallcapsGlow Map View 77x44 Zoom Use 0% Tactical HUD 1 Map Filters NONE Filters NONE Steam 1 RUN: a6a98e8b-011a-42e4-9124-502134354198